{"text_format":"3","workbook":"xlsx","n_sheets":26,"sheets":["Inicio","1","2","3","4","5","6","7","8","9","10","11","12","13","14","15","16","17","18","19","20","21","22","23","24","Más información"],"not_rendered":{"images":22,"defined_names":5,"pivot_tables":19},"read":"whole","date_system":"1900"}

{"sheet":"Inicio","index":0,"n_rows":5,"n_cols":1,"rows_kept":5}
["Te damos la bienvenida\nInstrucciones para los lectores de pantalla: Saca más partido a las tablas dinámicas. Una simple tabla dinámica te ofrece un resumen general de los datos, pero a veces necesitas respuestas detalladas a preguntas específicas. Allí es donde puede ser útil agregar más campos de columna y fila. \nLas instrucciones indicarán a qué celdas ir para usar una característica o seguir leyendo.\nPara empezar, presiona CTRL + AV PÁG."]
["Saca más partido a las tablas dinámicas"]
["Una simple tabla dinámica te ofrece un resumen general de tus datos,\npero a veces se necesitan respuestas detalladas a preguntas específicas.\nAllí es donde puede ser útil agregar más campos de columna y fila."]
["ES BUENO SABER\n¿Realizaste el primer tutorial? Si no es así, ve a Archivo > Nuevo y busca Realizar la primera tabla dinámica."]
["Para volver al principio, presiona CTRL+INICIO. Para iniciar el recorrido, presiona CTRL+AV PÁG."]

{"sheet":"1","index":1,"n_rows":16,"n_cols":9,"rows_kept":16}
["En el primer tutorial, te mostramos el concepto de una tabla dinámica. También explicamos cómo se puede usar un campo de fila como una condición que divide un campo de valor.   "]
["Las celdas H10 a I14 contienen una tabla dinámica que resume los datos en las celdas B8 a E16. La tabla dinámica tiene dos columnas: Comprador y Suma de importe. La columna Comprador contiene los valores Papá, Mamá, Julia y Total general. La columna Suma de importe contiene los valores $220, $270, $810 y $1,300. La columna Comprador está formada por un campo de fila y la columna Suma de importe se compone de un campo de valor."]
["Para continuar con este tutorial, presiona CTRL + AV PÁG. Para ir a la hoja anterior, presiona CTRL + RE PÁG."]
[]
[]
[]
[]
[null,"Fecha","Comprador","Tipo","Importe"]
["Este ejemplo muestra cómo el campo de fila...","2017-01-01","Papá","Regalos",{"v":95,"d":"$95"}]
["...divide el campo de valor.","2017-01-15","Mamá","Comida",{"v":325,"d":"$325"},null,null,"Comprador","Suma de Importe"]
[null,"2017-01-17","Mamá","Boletos",{"v":250,"d":"$250"},null,null,"Papá",{"v":220,"d":"$220"}]
[null,"2017-01-21","Papá","Comida",{"v":125,"d":"$125"},null,null,"Julia",{"v":270,"d":"$270"}]
[null,"2017-02-02","Mamá","Comida",{"v":235,"d":"$235"},null,null,"Mamá",{"v":810,"d":"$810"}]
[null,"2017-02-20","Julia","Música",{"v":20,"d":"$20"},null,null,"Total general",{"v":1300,"d":"$1,300"}]
[null,"2017-02-25","Julia","Boletos",{"v":125,"d":"$125"}]
[null,"2017-02-25","Julia","Deportes",{"v":125,"d":"$125"}]

{"sheet":"2","index":2,"n_rows":108,"n_cols":7,"rows_kept":108}
["Pero cuando miras una tabla dinámica por primera vez, tal vez te parezca que necesitas que te brinde más respuestas."]
["Cuando ves por primera vez una tabla dinámica, es posible que tengas preguntas como, \"¿Cuándo se realizaron estas compras?\", \"¿En qué gastó el dinero cada persona?\", \"¿Qué compró mamá que era tan caro?\"."]
["En este ejemplo, las celdas F11 a G15 muestran la misma tabla dinámica de dos columnas que antes. La columna Comprador es un campo de fila y contiene los valores Papá, Mamá, Julia y Total general. La columna Suma de importe es el campo de Valor y contiene los valores $220, $270, $810 y $1,300. "]
["Para continuar con este tutorial, presiona CTRL + AV PÁG. Para ir a la hoja anterior, presiona CTRL + RE PÁG."]
[]
[]
[]
[]
[]
[]
[{"$nulls":5},"Comprador","Suma de Importe"]
[{"$nulls":5},"Papá",{"v":220,"d":"$220"}]
[{"$nulls":5},"Julia",{"v":270,"d":"$270"}]
[{"$nulls":5},"Mamá",{"v":810,"d":"$810"}]
[{"$nulls":5},"Total general",{"v":1300,"d":"$1,300"}]
{"$rows_empty":84}
[null,"Fecha","Comprador","Tipo","Importe"]
[null,"2017-01-01","Papá","Regalos",{"v":95,"d":"$95"}]
[null,"2017-01-15","Mamá","Comida",{"v":325,"d":"$325"}]
[null,"2017-01-17","Mamá","Boletos",{"v":250,"d":"$250"}]
[null,"2017-01-21","Papá","Comida",{"v":125,"d":"$125"}]
[null,"2017-02-02","Mamá","Comida",{"v":235,"d":"$235"}]
[null,"2017-02-20","Julia","Música",{"v":20,"d":"$20"}]
[null,"2017-02-25","Julia","Boletos",{"v":125,"d":"$125"}]
[null,"2017-02-25","Julia","Deportes",{"v":125,"d":"$125"}]

{"sheet":"3","index":3,"n_rows":108,"n_cols":7,"rows_kept":108}
["Todas estas son buenas preguntas, pero por el momento vamos a centrarnos en una sola pregunta."]
["¿En qué gastó el dinero cada persona?"]
["A modo de referencia, las celdas F11 a G15 mostrarán la misma columna de dos tablas dinámicas que antes. La columna Comprador es un campo de fila y contiene los valores Papá, Mamá, Julia y Total general. La columna Suma de importe es el campo de Valor y contiene los valores $220, $270, $810 y $1,300. "]
["Para continuar con este tutorial, presiona CTRL + AV PÁG. Para ir a la hoja anterior, presiona CTRL + RE PÁG."]
[]
[]
[]
[]
[]
[]
[{"$nulls":5},"Comprador","Suma de Importe"]
[{"$nulls":5},"Papá",{"v":220,"d":"$220"}]
[{"$nulls":5},"Julia",{"v":270,"d":"$270"}]
[{"$nulls":5},"Mamá",{"v":810,"d":"$810"}]
[{"$nulls":5},"Total general",{"v":1300,"d":"$1,300"}]
{"$rows_empty":84}
[null,"Fecha","Comprador","Tipo","Importe"]
[null,"2017-01-01","Papá","Regalos",{"v":95,"d":"$95"}]
[null,"2017-01-15","Mamá","Comida",{"v":325,"d":"$325"}]
[null,"2017-01-17","Mamá","Boletos",{"v":250,"d":"$250"}]
[null,"2017-01-21","Papá","Comida",{"v":125,"d":"$125"}]
[null,"2017-02-02","Mamá","Comida",{"v":235,"d":"$235"}]
[null,"2017-02-20","Julia","Música",{"v":20,"d":"$20"}]
[null,"2017-02-25","Julia","Boletos",{"v":125,"d":"$125"}]
[null,"2017-02-25","Julia","Deportes",{"v":125,"d":"$125"}]

{"sheet":"4","index":4,"n_rows":108,"n_cols":9,"rows_kept":108}
["La última pregunta que formulamos fue \"¿En qué gastó el dinero cada persona?\""]
["Para responder a esa pregunta, agregamos el campo Tipo. Como resultado, la tabla dinámica ahora tiene cinco columnas nuevas que nos indican el tipo de compra de cada persona. "]
["La nueva tabla dinámica ahora abarca desde la celda C10 a la I15, con columnas para Comprador, Comida, Música, Deportes, Boletos, Regalos y Total general. El Comprador y el Total general son los mismos que antes, y las nuevas columnas de detalle están entre ellos."]
["Para continuar con este tutorial, presiona CTRL + AV PÁG. Para ir a la hoja anterior, presiona CTRL + RE PÁG."]
[]
[]
[]
[]
[]
[null,null,"Suma de Importe","Tipo"]
[null,null,"Comprador","Comida","Música","Deportes","Boletos","Regalos","Total general"]
[null,null,"Papá",{"v":125,"d":"$125"},{"$nulls":3},{"v":95,"d":"$95"},{"v":220,"d":"$220"}]
[null,null,"Julia",null,{"v":20,"d":"$20"},{"v":125,"d":"$125"},{"v":125,"d":"$125"},null,{"v":270,"d":"$270"}]
[null,null,"Mamá",{"v":560,"d":"$560"},null,null,{"v":250,"d":"$250"},null,{"v":810,"d":"$810"}]
[null,null,"Total general",{"v":685,"d":"$685"},{"v":20,"d":"$20"},{"v":125,"d":"$125"},{"v":375,"d":"$375"},{"v":95,"d":"$95"},{"v":1300,"d":"$1,300"}]
{"$rows_empty":84}
[null,"Fecha","Comprador","Tipo","Importe"]
[null,"2017-01-01","Papá","Regalos",{"v":95,"d":"$95"}]
[null,"2017-01-15","Mamá","Comida",{"v":325,"d":"$325"}]
[null,"2017-01-17","Mamá","Boletos",{"v":250,"d":"$250"}]
[null,"2017-01-21","Papá","Comida",{"v":125,"d":"$125"}]
[null,"2017-02-02","Mamá","Comida",{"v":235,"d":"$235"}]
[null,"2017-02-20","Julia","Música",{"v":20,"d":"$20"}]
[null,"2017-02-25","Julia","Boletos",{"v":125,"d":"$125"}]
[null,"2017-02-25","Julia","Deportes",{"v":125,"d":"$125"}]

{"sheet":"5","index":5,"n_rows":108,"n_cols":9,"rows_kept":108}
["Si la tabla dinámica es difícil de entender, prueba lo siguiente: Lee desde la izquierda, después desde arriba y luego desde abajo. En el ejemplo siguiente, Papá está en la celda C12, Comida por $125 en la celda D12, Regalos por $95 dólares en la celda E12 y Total general de $220 en la celda I12. Las filas 13 y 14 muestran los detalles de Julia y Mamá, y la fila 15 muestra el Total general."]
["Para continuar con este tutorial, presiona CTRL + AV PÁG. Para ir a la hoja anterior, presiona CTRL + RE PÁG."]
{"$rows_empty":7}
[null,null,"Suma de Importe","Tipo"]
[null,null,"Comprador","Comida","Regalos","Música","Deportes","Boletos","Total general"]
[null,null,"Papá",{"v":125,"d":"$125"},{"v":95,"d":"$95"},{"$nulls":3},{"v":220,"d":"$220"}]
[null,null,"Julia",null,null,{"v":20,"d":"$20"},{"v":125,"d":"$125"},{"v":125,"d":"$125"},{"v":270,"d":"$270"}]
[null,null,"Mamá",{"v":560,"d":"$560"},{"$nulls":3},{"v":250,"d":"$250"},{"v":810,"d":"$810"}]
[null,null,"Total general",{"v":685,"d":"$685"},{"v":95,"d":"$95"},{"v":20,"d":"$20"},{"v":125,"d":"$125"},{"v":375,"d":"$375"},{"v":1300,"d":"$1,300"}]
{"$rows_empty":84}
[null,"Fecha","Comprador","Tipo","Importe"]
[null,"2017-01-01","Papá","Regalos",95]
[null,"2017-01-15","Mamá","Comida",325]
[null,"2017-01-17","Mamá","Boletos",250]
[null,"2017-01-21","Papá","Comida",125]
[null,"2017-02-02","Mamá","Comida",235]
[null,"2017-02-20","Julia","Música",20]
[null,"2017-02-25","Julia","Boletos",125]
[null,"2017-02-25","Julia","Deportes",125]

{"sheet":"6","index":6,"n_rows":3,"n_cols":1,"rows_kept":3}
["No lo hagas ahora, pero en un par de pasos, trabajarás con una tabla dinámica. Lo primero que debes hacer es crear un detalle en el campo de Columnas. Para hacerlo, coloca el campo Tipo en el área de campo de Columnas."]
["Una imagen de la lista de campos de tabla dinámica muestra un cursor de flecha que arrastra el campo Tipo al área de Columnas."]
["Para continuar con este tutorial, presiona CTRL + AV PÁG. Para ir a la hoja anterior, presiona CTRL + RE PÁG."]

{"sheet":"7","index":7,"n_rows":108,"n_cols":8,"rows_kept":108}
["1. El área de tabla dinámica para este ejemplo está en las celdas B13 a C17. Ve a cualquiera de esas celdas."]
["2. Presiona ALT+JZ, L para abrir la lista de campos de tabla dinámica. El valor predeterminado será el cuadro de texto de buscar: \"Escribe las palabras que deseas buscar\". No escribas nada. En su lugar, presiona la tecla TAB una vez. NOTA: Si no se inicia la lista de campos, presiona ALT+JZ, L de nuevo."]
["3. Presiona las teclas de dirección para seleccionar el campo Tipo. Después de realizar la selección, presiona la barra espaciadora para agregar el campo Tipo al área de filas. "]
["4. Presiona las teclas de dirección para seleccionar el campo Tipo en el área de filas. Presiona la barra espaciadora para agregar el campo Tipo al área de Columnas. Presiona la tecla ESC para salir del panel de campos de tabla dinámica. "]
["Para continuar con este tutorial, presiona CTRL + AV PÁG. Para ir a la hoja anterior, presiona CTRL + RE PÁG."]
["1. En las celdas B13 a D30 se muestra el área de la tabla dinámica. Ve a cualquiera de esas celdas. \n\n2. Presiona ALT+JZ, L para abrir la lista de campos de tabla dinámica. El valor predeterminado será el cuadro de texto de buscar: \"Escribe las palabras que deseas buscar\". No escribas nada. En su lugar, presiona la tecla TAB una vez. \n\n3. Presiona las teclas de dirección para desplazarte hasta el campo Importe. Presione la barra espaciadora para agregar el campo Importe al área de valores. \n\n4. Presiona las teclas de dirección para desplazarte hasta el campo Comprador. Presione la barra espaciadora para agregar el campo Comprador al área de filas. Presiona la tecla ESC para salir del panel de campos de tabla dinámica. "]
[]
[]
[3,{"$nulls":6},{"$f":"IF(AND($B$14=\"Comprador\",$H$17=810),\"Buen trabajo. Colocaste el \",\" \")","v":" "}]
[2,{"$nulls":6},{"$f":"IF(AND($B$14=\"Comprador\",$H$17=810),\"primer campo de columna. Haz\",\" \")","v":" "}]
["Procedimiento ",{"$nulls":6},{"$f":"IF(AND($B$14=\"Comprador\",$H$17=810),\"clic en siguiente para continuar...\",\" \")","v":" "}]
[4]
[null,"Comprador","Suma de Importe"]
[null,"Papá",{"v":220,"d":"$220"}]
[null,"Julia",{"v":270,"d":"$270"}]
[null,"Mamá",{"v":810,"d":"$810"}]
[null,"Total general",{"v":1300,"d":"$1,300"}]
{"$rows_empty":82}
[null,"Fecha","Comprador","Tipo","Importe"]
[null,"2017-01-01","Papá","Regalos",95]
[null,"2017-01-15","Mamá","Comida",325]
[null,"2017-01-17","Mamá","Boletos",250]
[null,"2017-01-21","Papá","Comida",125]
[null,"2017-02-02","Mamá","Comida",235]
[null,"2017-02-20","Julia","Música",20]
[null,"2017-02-25","Julia","Boletos",125]
[null,"2017-02-25","Julia","Deportes",125]

{"sheet":"8","index":8,"n_rows":108,"n_cols":9,"rows_kept":108}
["Vamos a revisar la tabla dinámica que acabas de crear, pero esta vez agregamos algunos colores especiales para diferenciar los campos de fila, columna y valor."]
["El campo de fila va de la celda C10 a la C13 y tiene un sombreado en amarillo."]
["El campo de columna va de la celda D9 a la H10 y tiene un sombreado en naranja."]
["El campo de valor va desde la celda D11 a la H13 y tiene un sombreado en azul."]
["Para continuar con este tutorial, presiona CTRL + AV PÁG. Para ir a la hoja anterior, presiona CTRL + RE PÁG."]
[]
[]
[]
[null,null,"Suma de Importe","Tipo"]
[null,null,"Comprador","Comida","Regalos","Música","Deportes","Boletos","Total general"]
[null,null,"Papá",{"v":125,"d":"$125"},{"v":95,"d":"$95"},{"$nulls":3},{"v":220,"d":"$220"}]
[null,null,"Julia",null,null,{"v":20,"d":"$20"},{"v":125,"d":"$125"},{"v":125,"d":"$125"},{"v":270,"d":"$270"}]
[null,null,"Mamá",{"v":560,"d":"$560"},{"$nulls":3},{"v":250,"d":"$250"},{"v":810,"d":"$810"}]
[null,null,"Total general",{"v":685,"d":"$685"},{"v":95,"d":"$95"},{"v":20,"d":"$20"},{"v":125,"d":"$125"},{"v":375,"d":"$375"},{"v":1300,"d":"$1,300"}]
{"$rows_empty":85}
[null,"Fecha","Comprador","Tipo","Importe"]
[null,"2017-01-01","Papá","Regalos",95]
[null,"2017-01-15","Mamá","Comida",325]
[null,"2017-01-17","Mamá","Boletos",250]
[null,"2017-01-21","Papá","Comida",125]
[null,"2017-02-02","Mamá","Comida",235]
[null,"2017-02-20","Julia","Música",20]
[null,"2017-02-25","Julia","Boletos",125]
[null,"2017-02-25","Julia","Deportes",125]

{"sheet":"9","index":9,"n_rows":3,"n_cols":1,"rows_kept":3}
["Esta es otra forma de pensarlo: El campo de fila está a la izquierda y el campo de columna en la parte superior. Cada uno de estos proporciona una condición al campo de valor, que los suma."]
["Una imagen conceptual muestra un área rectangular de 4 secciones con el Campo de fila en la parte inferior izquierda en amarillo, el Campo de columna en la parte superior derecha en naranja y el Campo de valor en la parte inferior derecha en azul."]
["Para continuar con este tutorial, presiona CTRL + AV PÁG. Para ir a la hoja anterior, presiona CTRL + RE PÁG."]

{"sheet":"10","index":10,"n_rows":3,"n_cols":1,"rows_kept":3}
["Piénsalo de esa forma al usar la lista de campos. El Campo de fila está a la izquierda y el Campo de columna en la parte superior. Cada uno de estos proporciona una condición al Campo de valor, que los suma."]
["Una imagen conceptual muestra la lista de campos de tabla dinámica que se muestra con el campo de fila en la parte inferior izquierda en amarillo, el campo de columna en la parte superior derecha en naranja y el campo de valor en la parte inferior derecha en azul."]
["Para continuar con este tutorial, presiona CTRL + AV PÁG. Para ir a la hoja anterior, presiona CTRL + RE PÁG."]

{"sheet":"11","index":11,"n_rows":121,"n_cols":24,"rows_kept":121}
["Una cosa que deberías considerar: Si un campo de columna agrega una gran cantidad de columnas a una tabla dinámica, la hará muy ancha. "]
["En este ejemplo, la tabla dinámica ahora abarca de la celda C10 a la X15, ya que el campo de columna agregó 20 columnas nuevas. Eso es una gran cantidad de columnas. Esto hará que la gente deba desplazarse mucho."]
["Para continuar con este tutorial, presiona CTRL + AV PÁG. Para ir a la hoja anterior, presiona CTRL + RE PÁG."]
[]
[]
[]
[]
[]
[]
[null,null,"Suma de Importe","Tipo"]
[null,null,"Comprador","Boletos","Cenas","Clases de música","Combustible","Comida","Dental","Deportes","Electricidad","Electrónica","Estacionamiento","Impuestos","Libros","Médico","Música","Privado","Ropa","Seguro automotor","Seguro de salud","Seguro para el hogar","Tarifa_aérea","Total general"]
[null,null,"Julia",{"v":125,"d":"$125"},{"v":20,"d":"$20"},{"v":250,"d":"$250"},{"$nulls":5},{"v":125,"d":"$125"},{"v":20,"d":"$20"},null,{"v":250,"d":"$250"},null,{"v":20,"d":"$20"},null,{"v":125,"d":"$125"},{"$nulls":4},{"v":935,"d":"$935"}]
[null,null,"Mamá",{"$nulls":3},{"v":74,"d":"$74"},{"v":470,"d":"$470"},{"v":235,"d":"$235"},null,{"v":70,"d":"$70"},{"$nulls":4},{"v":74,"d":"$74"},null,{"v":125,"d":"$125"},null,{"v":74,"d":"$74"},{"v":70,"d":"$70"},{"v":235,"d":"$235"},null,{"v":1427,"d":"$1,427"}]
[null,null,"Papá",{"$nulls":6},{"v":1000,"d":"$1,000"},{"$nulls":3},{"v":500,"d":"$500"},{"$nulls":8},{"v":500,"d":"$500"},{"v":2000,"d":"$2,000"}]
[null,null,"Total general",{"v":125,"d":"$125"},{"v":20,"d":"$20"},{"v":250,"d":"$250"},{"v":74,"d":"$74"},{"v":470,"d":"$470"},{"v":235,"d":"$235"},{"v":1000,"d":"$1,000"},{"v":70,"d":"$70"},{"v":125,"d":"$125"},{"v":20,"d":"$20"},{"v":500,"d":"$500"},{"v":250,"d":"$250"},{"v":74,"d":"$74"},{"v":20,"d":"$20"},{"v":125,"d":"$125"},{"v":125,"d":"$125"},{"v":74,"d":"$74"},{"v":70,"d":"$70"},{"v":235,"d":"$235"},{"v":500,"d":"$500"},{"v":4362,"d":"$4,362"}]
{"$rows_empty":84}
[null,"Fecha","Comprador","Tipo","Importe"]
[null,"2017-01-17","Papá","Deportes",{"v":1000,"d":"$1,000"}]
[null,"2017-01-17","Papá","Tarifa_aérea",{"v":500,"d":"$500"}]
[null,"2017-01-17","Papá","Impuestos",{"v":500,"d":"$500"}]
[null,"2017-02-20","Julia","Música",{"v":20,"d":"$20"}]
[null,"2017-02-25","Julia","Boletos",{"v":125,"d":"$125"}]
[null,"2017-01-21","Julia","Libros",{"v":250,"d":"$250"}]
[null,"2017-02-20","Julia","Cenas",{"v":20,"d":"$20"}]
[null,"2017-02-25","Julia","Ropa",{"v":125,"d":"$125"}]
[null,"2017-01-21","Julia","Clases de música",{"v":250,"d":"$250"}]
[null,"2017-02-20","Julia","Estacionamiento",{"v":20,"d":"$20"}]
[null,"2017-02-25","Julia","Electrónica",{"v":125,"d":"$125"}]
[null,"2017-01-01","Mamá","Combustible",{"v":74,"d":"$74"}]
[null,"2017-01-15","Mamá","Comida",{"v":235,"d":"$235"}]
[null,"2017-01-21","Mamá","Privado",{"v":125,"d":"$125"}]
[null,"2017-02-02","Mamá","Comida",{"v":235,"d":"$235"}]
[null,"2017-01-01","Mamá","Médico",{"v":74,"d":"$74"}]
[null,"2017-01-15","Mamá","Electricidad",{"v":70,"d":"$70"}]
[null,"2017-02-02","Mamá","Dental",{"v":235,"d":"$235"}]
[null,"2017-01-01","Mamá","Seguro automotor",{"v":74,"d":"$74"}]
[null,"2017-01-15","Mamá","Seguro de salud",{"v":70,"d":"$70"}]
[null,"2017-02-02","Mamá","Seguro para el hogar",{"v":235,"d":"$235"}]

{"sheet":"12","index":12,"n_rows":119,"n_cols":5,"rows_kept":119}
["Hay una alternativa para las tablas dinámicas extra anchas: puedes usar un segundo campo de fila. Se mostrará un segundo campo de fila con sangría debajo del primer campo de fila."]
["En este ejemplo, hay una tabla dinámica de la celda D8 a la E32. Muestra a Papá, Julia y Mamá como primer campo de fila en la columna D. A continuación, los tipos de gastos están debajo como segundo campo de fila con elementos como Deportes Tarifas_aéreas, Cenas, etc."]
["ES BUENO SABER\nUn segundo campo de fila crea una tabla dinámica de orientación vertical en lugar de horizontal. Algunos usuarios encuentran que las tablas dinámicas verticales son más fáciles de leer porque no requieren tanto desplazamiento de lado a lado."]
["EXCEL DICE\nA veces, las personas llaman al segundo campo \"campo de fila secundario\"."]
["Para continuar con este tutorial, presiona CTRL + AV PÁG. Para ir a la hoja anterior, presiona CTRL + RE PÁG."]
[]
[]
[{"$nulls":3},"Etiquetas de fila","Suma de Importe"]
[{"$nulls":3},"Julia",{"v":935,"d":"$935"}]
[{"$nulls":3},"Boletos",{"v":125,"d":"$125"}]
[{"$nulls":3},"Cenas",{"v":20,"d":"$20"}]
[{"$nulls":3},"Clases de música",{"v":250,"d":"$250"}]
[{"$nulls":3},"Electrónica",{"v":125,"d":"$125"}]
[{"$nulls":3},"Estacionamiento",{"v":20,"d":"$20"}]
[{"$nulls":3},"Libros",{"v":250,"d":"$250"}]
[{"$nulls":3},"Música",{"v":20,"d":"$20"}]
[{"$nulls":3},"Ropa",{"v":125,"d":"$125"}]
[{"$nulls":3},"Mamá",{"v":1427,"d":"$1,427"}]
[{"$nulls":3},"Combustible",{"v":74,"d":"$74"}]
[{"$nulls":3},"Comida",{"v":470,"d":"$470"}]
[{"$nulls":3},"Dental",{"v":235,"d":"$235"}]
[{"$nulls":3},"Electricidad",{"v":70,"d":"$70"}]
[{"$nulls":3},"Médico",{"v":74,"d":"$74"}]
[{"$nulls":3},"Privado",{"v":125,"d":"$125"}]
[{"$nulls":3},"Seguro automotor",{"v":74,"d":"$74"}]
[{"$nulls":3},"Seguro de salud",{"v":70,"d":"$70"}]
[{"$nulls":3},"Seguro para el hogar",{"v":235,"d":"$235"}]
[{"$nulls":3},"Papá",{"v":2000,"d":"$2,000"}]
[{"$nulls":3},"Deportes",{"v":1000,"d":"$1,000"}]
[{"$nulls":3},"Impuestos",{"v":500,"d":"$500"}]
[{"$nulls":3},"Tarifa_aérea",{"v":500,"d":"$500"}]
[{"$nulls":3},"Total general",{"v":4362,"d":"$4,362"}]
{"$rows_empty":65}
[null,"Fecha","Comprador","Tipo","Importe"]
[null,"2017-01-17","Papá","Deportes",{"v":1000,"d":"$1,000"}]
[null,"2017-01-17","Papá","Tarifa_aérea",{"v":500,"d":"$500"}]
[null,"2017-01-17","Papá","Impuestos",{"v":500,"d":"$500"}]
[null,"2017-02-20","Julia","Música",{"v":20,"d":"$20"}]
[null,"2017-02-25","Julia","Boletos",{"v":125,"d":"$125"}]
[null,"2017-01-21","Julia","Libros",{"v":250,"d":"$250"}]
[null,"2017-02-20","Julia","Cenas",{"v":20,"d":"$20"}]
[null,"2017-02-25","Julia","Ropa",{"v":125,"d":"$125"}]
[null,"2017-01-21","Julia","Clases de música",{"v":250,"d":"$250"}]
[null,"2017-02-20","Julia","Estacionamiento",{"v":20,"d":"$20"}]
[null,"2017-02-25","Julia","Electrónica",{"v":125,"d":"$125"}]
[null,"2017-01-01","Mamá","Combustible",{"v":74,"d":"$74"}]
[null,"2017-01-15","Mamá","Comida",{"v":235,"d":"$235"}]
[null,"2017-01-21","Mamá","Privado",{"v":125,"d":"$125"}]
[null,"2017-02-02","Mamá","Comida",{"v":235,"d":"$235"}]
[null,"2017-01-01","Mamá","Médico",{"v":74,"d":"$74"}]
[null,"2017-01-15","Mamá","Electricidad",{"v":70,"d":"$70"}]
[null,"2017-02-02","Mamá","Dental",{"v":235,"d":"$235"}]
[null,"2017-01-01","Mamá","Seguro automotor",{"v":74,"d":"$74"}]
[null,"2017-01-15","Mamá","Seguro de salud",{"v":70,"d":"$70"}]
[null,"2017-02-02","Mamá","Seguro para el hogar",{"v":235,"d":"$235"}]

{"sheet":"13","index":13,"n_rows":3,"n_cols":1,"rows_kept":3}
["En la siguiente hoja agregarás un segundo campo de fila. Y podrás hacerlo colocando el campo Tipo debajo del campo Comprador en el campo Filas."]
["La imagen de la lista de campos de tabla dinámica muestra un cursor de flecha que arrastra el campo Tipo al área de Filas."]
["Para continuar con este tutorial, presiona CTRL + AV PÁG. Para ir a la hoja anterior, presiona CTRL + RE PÁG."]

{"sheet":"14","index":14,"n_rows":122,"n_cols":9,"rows_kept":122}
["1. El área de tabla dinámica para este ejemplo está en las celdas B13 a C17. Ve a cualquiera de esas celdas. "]
["2. Presiona ALT+JZ, L para abrir la lista de Campos de tabla dinámica. El valor predeterminado será el cuadro de texto de buscar: \"Escribe las palabras que deseas buscar\". No escribas nada. En su lugar, presiona la tecla TAB una vez. NOTA: Si no se inicia la lista de campos, presiona ALT+JZ, L de nuevo."]
["3. Presiona las teclas de dirección para desplazarte hasta el campo Tipo. Presiona la barra espaciadora para agregar el campo Tipo al área de Filas. "]
["4. Presiona la tecla ESC para salir del panel de Campos de tabla dinámica. "]
["Para continuar con este tutorial, presiona CTRL + AV PÁG. Para ir a la hoja anterior, presiona CTRL + RE PÁG.",{"$nulls":7},{"$f":"IF(AND($B$15=\"Deportes\",$C$36=235),\"Bien hecho. Agregaste un \",\" \")","v":" "}]
[{"$nulls":8},{"$f":"IF(AND($B$15=\"Deportes\",$C$36=235),\"segundo campo de fila a la \",\" \")","v":" "}]
[{"$nulls":8},{"$f":"IF(AND($B$15=\"Deportes\",$C$36=235),\"tabla dinámica. Desplázate \",\" \")","v":" "}]
[{"$nulls":8},{"$f":"IF(AND($B$15=\"Deportes\",$C$36=235),\"hacia abajo y haz clic en siguiente.\",\" \")","v":" "}]
[]
[]
[]
[]
[null,"Etiquetas de fila","Suma de Importe"]
[null,"Julia",{"v":935,"d":"$935"}]
[null,"Mamá",{"v":1427,"d":"$1,427"}]
[null,"Papá",{"v":2000,"d":"$2,000"}]
[null,"Total general",{"v":4362,"d":"$4,362"}]
{"$rows_empty":83}
[null,"Fecha","Comprador","Tipo","Importe"]
[null,"2017-01-17","Papá","Deportes",{"v":1000,"d":"$1,000"}]
[null,"2017-01-17","Papá","Tarifa_aérea",{"v":500,"d":"$500"}]
[null,"2017-01-17","Papá","Impuestos",{"v":500,"d":"$500"}]
[null,"2017-02-20","Julia","Música",{"v":20,"d":"$20"}]
[null,"2017-02-25","Julia","Boletos",{"v":125,"d":"$125"}]
[null,"2017-01-21","Julia","Libros",{"v":250,"d":"$250"}]
[null,"2017-02-20","Julia","Cenas",{"v":20,"d":"$20"}]
[null,"2017-02-25","Julia","Ropa",{"v":125,"d":"$125"}]
[null,"2017-01-21","Julia","Clases de música",{"v":250,"d":"$250"}]
[null,"2017-02-20","Julia","Estacionamiento",{"v":20,"d":"$20"}]
[null,"2017-02-25","Julia","Electrónica",{"v":125,"d":"$125"}]
[null,"2017-01-01","Mamá","Combustible",{"v":74,"d":"$74"}]
[null,"2017-01-15","Mamá","Comida",{"v":235,"d":"$235"}]
[null,"2017-01-21","Mamá","Privado",{"v":125,"d":"$125"}]
[null,"2017-02-02","Mamá","Comida",{"v":235,"d":"$235"}]
[null,"2017-01-01","Mamá","Médico",{"v":74,"d":"$74"}]
[null,"2017-01-15","Mamá","Electricidad",{"v":70,"d":"$70"}]
[null,"2017-02-02","Mamá","Dental",{"v":235,"d":"$235"}]
[null,"2017-01-01","Mamá","Seguro automotor",{"v":74,"d":"$74"}]
[null,"2017-01-15","Mamá","Seguro de salud",{"v":70,"d":"$70"}]
[null,"2017-02-02","Mamá","Seguro para el hogar",{"v":235,"d":"$235"}]

{"sheet":"15","index":15,"n_rows":121,"n_cols":7,"rows_kept":121}
["Si necesitas simplificar la tabla dinámica, puedes contraer los datos del segundo campo de fila \"hacia arriba\" para que no estorbe. "]
["El área de tabla dinámica para este ejemplo está en las celdas F7 a G31. Selecciona la celda F8 para elegir el primer campo de fila para Papá. A continuación, presiona ALT+JZ > E para expandir el segundo campo, o C para contraerlo."]
["Para continuar con este tutorial, presiona CTRL + AV PÁG. Para ir a la hoja anterior, presiona CTRL + RE PÁG."]
[]
[]
[{"$nulls":5},{"$f":"IF(AND($F$9=\"Julia\",$G$9=935),\"¡Muy bien!\",\" \")","v":" "}]
[{"$nulls":5},"Etiquetas de fila","Suma de Importe"]
[{"$nulls":5},"Papá",{"v":2000,"d":"$2,000"}]
[{"$nulls":5},"Deportes",{"v":1000,"d":"$1,000"}]
[{"$nulls":5},"Impuestos",{"v":500,"d":"$500"}]
[{"$nulls":5},"Tarifa_aérea",{"v":500,"d":"$500"}]
[{"$nulls":5},"Julia",{"v":935,"d":"$935"}]
[{"$nulls":5},"Libros",{"v":250,"d":"$250"}]
[{"$nulls":5},"Música",{"v":20,"d":"$20"}]
[{"$nulls":5},"Boletos",{"v":125,"d":"$125"}]
[{"$nulls":5},"Cenas",{"v":20,"d":"$20"}]
[{"$nulls":5},"Estacionamiento",{"v":20,"d":"$20"}]
[{"$nulls":5},"Electrónica",{"v":125,"d":"$125"}]
[{"$nulls":5},"Ropa",{"v":125,"d":"$125"}]
[{"$nulls":5},"Clases de música",{"v":250,"d":"$250"}]
[{"$nulls":5},"Mamá",{"v":1427,"d":"$1,427"}]
[{"$nulls":5},"Comida",{"v":470,"d":"$470"}]
[{"$nulls":5},"Combustible",{"v":74,"d":"$74"}]
[{"$nulls":5},"Dental",{"v":235,"d":"$235"}]
[{"$nulls":5},"Privado",{"v":125,"d":"$125"}]
[{"$nulls":5},"Médico",{"v":74,"d":"$74"}]
[{"$nulls":5},"Electricidad",{"v":70,"d":"$70"}]
[{"$nulls":5},"Seguro automotor",{"v":74,"d":"$74"}]
[{"$nulls":5},"Seguro de salud",{"v":70,"d":"$70"}]
[{"$nulls":5},"Seguro para el hogar",{"v":235,"d":"$235"}]
[{"$nulls":5},"Total general",{"v":4362,"d":"$4,362"}]
{"$rows_empty":68}
[null,"Fecha","Comprador","Tipo","Importe"]
[null,"2017-01-17","Papá","Deportes",{"v":1000,"d":"$1,000"}]
[null,"2017-01-17","Papá","Tarifa_aérea",{"v":500,"d":"$500"}]
[null,"2017-01-17","Papá","Impuestos",{"v":500,"d":"$500"}]
[null,"2017-02-20","Julia","Música",{"v":20,"d":"$20"}]
[null,"2017-02-25","Julia","Boletos",{"v":125,"d":"$125"}]
[null,"2017-01-21","Julia","Libros",{"v":250,"d":"$250"}]
[null,"2017-02-20","Julia","Cenas",{"v":20,"d":"$20"}]
[null,"2017-02-25","Julia","Ropa",{"v":125,"d":"$125"}]
[null,"2017-01-21","Julia","Clases de música",{"v":250,"d":"$250"}]
[null,"2017-02-20","Julia","Estacionamiento",{"v":20,"d":"$20"}]
[null,"2017-02-25","Julia","Electrónica",{"v":125,"d":"$125"}]
[null,"2017-01-01","Mamá","Combustible",{"v":74,"d":"$74"}]
[null,"2017-01-15","Mamá","Comida",{"v":235,"d":"$235"}]
[null,"2017-01-21","Mamá","Privado",{"v":125,"d":"$125"}]
[null,"2017-02-02","Mamá","Comida",{"v":235,"d":"$235"}]
[null,"2017-01-01","Mamá","Médico",{"v":74,"d":"$74"}]
[null,"2017-01-15","Mamá","Electricidad",{"v":70,"d":"$70"}]
[null,"2017-02-02","Mamá","Dental",{"v":235,"d":"$235"}]
[null,"2017-01-01","Mamá","Seguro automotor",{"v":74,"d":"$74"}]
[null,"2017-01-15","Mamá","Seguro de salud",{"v":70,"d":"$70"}]
[null,"2017-02-02","Mamá","Seguro para el hogar",{"v":235,"d":"$235"}]

{"sheet":"16","index":16,"n_rows":121,"n_cols":7,"rows_kept":121}
["También puedes contraer o expandir todo el campo de la segunda fila para simplificar la tabla dinámica aún más."]
["Aquí está la clave"]
["Selecciona el rango de datos de la tabla dinámica desde las celdas F7 a G31 y ve a ALT+JZ > C para contraer el grupo completo. Por el contrario, ALT+JZ > E expandirá todo el grupo."]
["Para continuar con este tutorial, presiona CTRL + AV PÁG. Para ir a la hoja anterior, presiona CTRL + RE PÁG."]
[]
[{"$nulls":5},{"$f":"IF(AND($F$9=\"Julia\",$G$9=935),\"¡Adelante!\",\" \")","v":" "}]
[{"$nulls":5},"Etiquetas de fila","Suma de Importe"]
[{"$nulls":5},"Papá",{"v":2000,"d":"$2,000"}]
[{"$nulls":5},"Deportes",{"v":1000,"d":"$1,000"}]
[{"$nulls":5},"Impuestos",{"v":500,"d":"$500"}]
[{"$nulls":5},"Tarifa_aérea",{"v":500,"d":"$500"}]
[{"$nulls":5},"Julia",{"v":935,"d":"$935"}]
[{"$nulls":5},"Libros",{"v":250,"d":"$250"}]
[{"$nulls":5},"Música",{"v":20,"d":"$20"}]
[{"$nulls":5},"Boletos",{"v":125,"d":"$125"}]
[{"$nulls":5},"Cenas",{"v":20,"d":"$20"}]
[{"$nulls":5},"Estacionamiento",{"v":20,"d":"$20"}]
[{"$nulls":5},"Electrónica",{"v":125,"d":"$125"}]
[{"$nulls":5},"Ropa",{"v":125,"d":"$125"}]
[{"$nulls":5},"Clases de música",{"v":250,"d":"$250"}]
[{"$nulls":5},"Mamá",{"v":1427,"d":"$1,427"}]
[{"$nulls":5},"Comida",{"v":470,"d":"$470"}]
[{"$nulls":5},"Combustible",{"v":74,"d":"$74"}]
[{"$nulls":5},"Dental",{"v":235,"d":"$235"}]
[{"$nulls":5},"Privado",{"v":125,"d":"$125"}]
[{"$nulls":5},"Médico",{"v":74,"d":"$74"}]
[{"$nulls":5},"Electricidad",{"v":70,"d":"$70"}]
[{"$nulls":5},"Seguro automotor",{"v":74,"d":"$74"}]
[{"$nulls":5},"Seguro de salud",{"v":70,"d":"$70"}]
[{"$nulls":5},"Seguro para el hogar",{"v":235,"d":"$235"}]
[{"$nulls":5},"Total general",{"v":4362,"d":"$4,362"}]
{"$rows_empty":68}
[null,"Fecha","Comprador","Tipo","Importe"]
[null,"2017-01-17","Papá","Deportes",{"v":1000,"d":"$1,000"}]
[null,"2017-01-17","Papá","Tarifa_aérea",{"v":500,"d":"$500"}]
[null,"2017-01-17","Papá","Impuestos",{"v":500,"d":"$500"}]
[null,"2017-02-20","Julia","Música",{"v":20,"d":"$20"}]
[null,"2017-02-25","Julia","Boletos",{"v":125,"d":"$125"}]
[null,"2017-01-21","Julia","Libros",{"v":250,"d":"$250"}]
[null,"2017-02-20","Julia","Cenas",{"v":20,"d":"$20"}]
[null,"2017-02-25","Julia","Ropa",{"v":125,"d":"$125"}]
[null,"2017-01-21","Julia","Clases de música",{"v":250,"d":"$250"}]
[null,"2017-02-20","Julia","Estacionamiento",{"v":20,"d":"$20"}]
[null,"2017-02-25","Julia","Electrónica",{"v":125,"d":"$125"}]
[null,"2017-01-01","Mamá","Combustible",{"v":74,"d":"$74"}]
[null,"2017-01-15","Mamá","Comida",{"v":235,"d":"$235"}]
[null,"2017-01-21","Mamá","Privado",{"v":125,"d":"$125"}]
[null,"2017-02-02","Mamá","Comida",{"v":235,"d":"$235"}]
[null,"2017-01-01","Mamá","Médico",{"v":74,"d":"$74"}]
[null,"2017-01-15","Mamá","Electricidad",{"v":70,"d":"$70"}]
[null,"2017-02-02","Mamá","Dental",{"v":235,"d":"$235"}]
[null,"2017-01-01","Mamá","Seguro automotor",{"v":74,"d":"$74"}]
[null,"2017-01-15","Mamá","Seguro de salud",{"v":70,"d":"$70"}]
[null,"2017-02-02","Mamá","Seguro para el hogar",{"v":235,"d":"$235"}]

{"sheet":"17","index":17,"n_rows":107,"n_cols":13,"rows_kept":107}
["También puedes tener más de un campo de columna. También se pueden contraer o expandir."]
["La tabla dinámica para este ejemplo va de las celdas B13 a M19. En este caso, tenemos una categoría Tipo en la sección Columnas, que incluye los elementos Comida y Servicios públicos."]
["PRUEBA ESTO\nSelecciona Comida en la celda C14 y ve a ALT+JZ > C para contraer todo el campo. ALT+JZ > E lo expandirá."]
["Para continuar con este tutorial, presiona CTRL + AV PÁG. Para ir a la hoja anterior, presiona CTRL + RE PÁG."]
{"$rows_empty":7}
[null,null,{"$f":"IF(AND($C$16=398,$D$15=\"Ene\"),\"Bien hecho.\",\" \")","v":" "}]
[null,"Suma de Importe","Etiquetas de columna"]
[null,null,"Comida",{"$nulls":3},"Total Comida","Servicios públicos",{"$nulls":3},"Total Servicios públicos","Total general"]
[null,"Etiquetas de fila","Ene","Feb","Mar","Abr",null,"Ene","Feb","Mar","Abr"]
[null,"Julia",{"v":74,"d":"$74"},{"v":74,"d":"$74"},{"v":125,"d":"$125"},{"v":125,"d":"$125"},{"v":398,"d":"$398"},{"$nulls":5},{"v":398,"d":"$398"}]
[null,"Papá",{"v":235,"d":"$235"},{"v":235,"d":"$235"},{"v":235,"d":"$235"},{"v":74,"d":"$74"},{"v":779,"d":"$779"},{"$nulls":5},{"v":779,"d":"$779"}]
[null,"Mamá",{"$nulls":5},{"v":1000,"d":"$1,000"},{"v":1000,"d":"$1,000"},{"v":20,"d":"$20"},{"v":70,"d":"$70"},{"v":2090,"d":"$2,090"},{"v":2090,"d":"$2,090"}]
[null,"Total general",{"v":309,"d":"$309"},{"v":309,"d":"$309"},{"v":360,"d":"$360"},{"v":199,"d":"$199"},{"v":1177,"d":"$1,177"},{"v":1000,"d":"$1,000"},{"v":1000,"d":"$1,000"},{"v":20,"d":"$20"},{"v":70,"d":"$70"},{"v":2090,"d":"$2,090"},{"v":3267,"d":"$3,267"}]
{"$rows_empty":75}
[null,"Mes","Comprador","Tipo","Importe"]
[null,"Ene","Julia","Comida",{"v":74,"d":"$74"}]
[null,"Ene","Papá","Comida",{"v":235,"d":"$235"}]
[null,"Ene","Mamá","Servicios públicos",{"v":1000,"d":"$1,000"}]
[null,"Feb","Julia","Comida",{"v":74,"d":"$74"}]
[null,"Feb","Papá","Comida",{"v":235,"d":"$235"}]
[null,"Feb","Mamá","Servicios públicos",{"v":1000,"d":"$1,000"}]
[null,"Mar","Julia","Comida",{"v":125,"d":"$125"}]
[null,"Mar","Papá","Comida",{"v":235,"d":"$235"}]
[null,"Mar","Mamá","Servicios públicos",{"v":20,"d":"$20"}]
[null,"Abr","Julia","Comida",{"v":125,"d":"$125"}]
[null,"Abr","Papá","Comida",{"v":74,"d":"$74"}]
[null,"Abr","Mamá","Servicios públicos",{"v":70,"d":"$70"}]

{"sheet":"18","index":18,"n_rows":146,"n_cols":5,"rows_kept":146}
["A tener en cuenta: Si necesitas más información, es posible agregar muchos más campos de filas o columnas. En este ejemplo, hay tres campos de fila."]
["La tabla dinámica para este ejemplo abarca desde la celda D8 a la E29 y tiene los campos Temporada, Comprador y Tipo en la columna D, con la Suma de importe en la columna E."]
["SUGERENCIA DE EXPERTOS\nEl hecho de que puedas agregar un conjunto de campos no significa que debas hacerlo. En este ejemplo, funciona correctamente. Pero a veces demasiados campos con todas las sangrías pueden hacer que la tabla dinámica sea muy complicada para que otros usuarios la entiendan. "]
["Para continuar con este tutorial, presiona CTRL + AV PÁG. Para ir a la hoja anterior, presiona CTRL + RE PÁG."]
[]
[]
[]
[{"$nulls":3},"Etiquetas de fila","Suma de Importe"]
[{"$nulls":3},"Otoño",{"v":5425,"d":"$5,425"}]
[{"$nulls":3},"Mamá",{"v":5425,"d":"$5,425"}]
[{"$nulls":3},"Seguro",{"v":1272,"d":"$1,272"}]
[{"$nulls":3},"Alquiler",{"v":3220,"d":"$3,220"}]
[{"$nulls":3},"Servicios públicos",{"v":933,"d":"$933"}]
[{"$nulls":3},"Primavera",{"v":4760,"d":"$4,760"}]
[{"$nulls":3},"Papá",{"v":4760,"d":"$4,760"}]
[{"$nulls":3},"Seguro",{"v":1040,"d":"$1,040"}]
[{"$nulls":3},"Alquiler",{"v":2400,"d":"$2,400"}]
[{"$nulls":3},"Servicios públicos",{"v":1320,"d":"$1,320"}]
[{"$nulls":3},"Verano",{"v":3473,"d":"$3,473"}]
[{"$nulls":3},"Mamá",{"v":3473,"d":"$3,473"}]
[{"$nulls":3},"Seguro",{"v":1080,"d":"$1,080"}]
[{"$nulls":3},"Alquiler",{"v":1260,"d":"$1,260"}]
[{"$nulls":3},"Servicios públicos",{"v":1133,"d":"$1,133"}]
[{"$nulls":3},"Invierno",{"v":4100,"d":"$4,100"}]
[{"$nulls":3},"Papá",{"v":4100,"d":"$4,100"}]
[{"$nulls":3},"Seguro",{"v":1030,"d":"$1,030"}]
[{"$nulls":3},"Alquiler",{"v":1420,"d":"$1,420"}]
[{"$nulls":3},"Servicios públicos",{"v":1650,"d":"$1,650"}]
[{"$nulls":3},"Total general",{"v":17758,"d":"$17,758"}]
{"$rows_empty":68}
[null,"Comprador","Temporada","Tipo","Importe"]
[null,"Papá","Invierno","Seguro",{"v":300,"d":"$300"}]
[null,"Papá","Invierno","Alquiler",{"v":200,"d":"$200"}]
[null,"Papá","Invierno","Servicios públicos",{"v":400,"d":"$400"}]
[null,"Papá","Invierno","Seguro",{"v":300,"d":"$300"}]
[null,"Papá","Invierno","Alquiler",{"v":800,"d":"$800"}]
[null,"Papá","Invierno","Servicios públicos",{"v":400,"d":"$400"}]
[null,"Papá","Invierno","Seguro",{"v":200,"d":"$200"}]
[null,"Papá","Invierno","Alquiler",{"v":300,"d":"$300"}]
[null,"Papá","Invierno","Servicios públicos",{"v":450,"d":"$450"}]
[null,"Papá","Invierno","Seguro",{"v":230,"d":"$230"}]
[null,"Papá","Invierno","Alquiler",{"v":120,"d":"$120"}]
[null,"Papá","Invierno","Servicios públicos",{"v":400,"d":"$400"}]
[null,"Papá","Primavera","Seguro",{"v":210,"d":"$210"}]
[null,"Papá","Primavera","Alquiler",{"v":300,"d":"$300"}]
[null,"Papá","Primavera","Servicios públicos",{"v":400,"d":"$400"}]
[null,"Papá","Primavera","Seguro",{"v":230,"d":"$230"}]
[null,"Papá","Primavera","Alquiler",{"v":900,"d":"$900"}]
[null,"Papá","Primavera","Servicios públicos",{"v":300,"d":"$300"}]
[null,"Papá","Primavera","Seguro",{"v":200,"d":"$200"}]
[null,"Papá","Primavera","Alquiler",{"v":1000,"d":"$1,000"}]
[null,"Papá","Primavera","Servicios públicos",{"v":220,"d":"$220"}]
[null,"Papá","Primavera","Seguro",{"v":400,"d":"$400"}]
[null,"Papá","Primavera","Alquiler",{"v":200,"d":"$200"}]
[null,"Papá","Primavera","Servicios públicos",{"v":400,"d":"$400"}]
[null,"Mamá","Verano","Seguro",{"v":100,"d":"$100"}]
[null,"Mamá","Verano","Alquiler",{"v":30,"d":"$30"}]
[null,"Mamá","Verano","Servicios públicos",{"v":123,"d":"$123"}]
[null,"Mamá","Verano","Seguro",{"v":300,"d":"$300"}]
[null,"Mamá","Verano","Alquiler",{"v":350,"d":"$350"}]
[null,"Mamá","Verano","Servicios públicos",{"v":230,"d":"$230"}]
[null,"Mamá","Verano","Seguro",{"v":120,"d":"$120"}]
[null,"Mamá","Verano","Alquiler",{"v":640,"d":"$640"}]
[null,"Mamá","Verano","Servicios públicos",{"v":530,"d":"$530"}]
[null,"Mamá","Verano","Seguro",{"v":560,"d":"$560"}]
[null,"Mamá","Verano","Alquiler",{"v":240,"d":"$240"}]
[null,"Mamá","Verano","Servicios públicos",{"v":250,"d":"$250"}]
[null,"Mamá","Otoño","Seguro",{"v":62,"d":"$62"}]
[null,"Mamá","Otoño","Alquiler",{"v":600,"d":"$600"}]
[null,"Mamá","Otoño","Servicios públicos",{"v":340,"d":"$340"}]
[null,"Mamá","Otoño","Seguro",{"v":205,"d":"$205"}]
[null,"Mamá","Otoño","Alquiler",{"v":500,"d":"$500"}]
[null,"Mamá","Otoño","Servicios públicos",{"v":403,"d":"$403"}]
[null,"Mamá","Otoño","Seguro",{"v":503,"d":"$503"}]
[null,"Mamá","Otoño","Alquiler",{"v":2000,"d":"$2,000"}]
[null,"Mamá","Otoño","Servicios públicos",{"v":140,"d":"$140"}]
[null,"Mamá","Otoño","Seguro",{"v":502,"d":"$502"}]
[null,"Mamá","Otoño","Alquiler",{"v":120,"d":"$120"}]
[null,"Mamá","Otoño","Servicios públicos",50]

{"sheet":"19","index":19,"n_rows":55,"n_cols":5,"rows_kept":55}
["¿Estás listo para practicar? Intenta revisar los datos siguientes en las celdas B7 a E55. Cuando estés listo, ve a la siguiente hoja y practica lo que aprendiste hasta ahora. "]
["No es necesario revisar todas las filas de datos. Revisa solo los nombres de campo en la fila 7. Trabajarás con estos en la siguiente hoja. "]
["Para continuar con este tutorial, presiona CTRL + AV PÁG. Para ir a la hoja anterior, presiona CTRL + RE PÁG."]
[]
[]
[]
[null,"Temporada","Representante de ventas","Producto","Unidades vendidas"]
[null,"Invierno","Julia","Naranjas",300]
[null,"Invierno","Jorge","Pomelo",200]
[null,"Invierno","Sergio","Manzanas",400]
[null,"Invierno","Julia","Plátanos",300]
[null,"Invierno","Jorge","Naranjas",800]
[null,"Invierno","Sergio","Pomelo",400]
[null,"Invierno","Julia","Manzanas",200]
[null,"Invierno","Jorge","Plátanos",300]
[null,"Invierno","Sergio","Naranjas",450]
[null,"Invierno","Julia","Pomelo",230]
[null,"Invierno","Jorge","Manzanas",120]
[null,"Invierno","Sergio","Plátanos",400]
[null,"Primavera","Julia","Remolacha",210]
[null,"Primavera","Jorge","Patatas",300]
[null,"Primavera","Sergio","Lechuga",400]
[null,"Primavera","Julia","Rábanos",230]
[null,"Primavera","Jorge","Remolacha",900]
[null,"Primavera","Sergio","Patatas",300]
[null,"Primavera","Julia","Lechuga",200]
[null,"Primavera","Jorge","Rábanos",1000]
[null,"Primavera","Sergio","Remolacha",220]
[null,"Primavera","Julia","Patatas",400]
[null,"Primavera","Jorge","Lechuga",200]
[null,"Primavera","Sergio","Rábanos",400]
[null,"Verano","Julia","Arándanos",100]
[null,"Verano","Jorge","Fresas",30]
[null,"Verano","Sergio","Uvas",123]
[null,"Verano","Julia","Calabazas",300]
[null,"Verano","Jorge","Arándanos",350]
[null,"Verano","Sergio","Fresas",230]
[null,"Verano","Julia","Uvas",120]
[null,"Verano","Jorge","Calabazas",640]
[null,"Verano","Sergio","Arándanos",530]
[null,"Verano","Julia","Fresas",560]
[null,"Verano","Jorge","Uvas",240]
[null,"Verano","Sergio","Calabazas",250]
[null,"Otoño","Julia","Calabaza",62]
[null,"Otoño","Jorge","Zucchini",600]
[null,"Otoño","Sergio","Manzanas",340]
[null,"Otoño","Julia","Naranjas",205]
[null,"Otoño","Jorge","Calabaza",500]
[null,"Otoño","Sergio","Zucchini",403]
[null,"Otoño","Julia","Manzanas",503]
[null,"Otoño","Jorge","Naranjas",2000]
[null,"Otoño","Sergio","Calabaza",140]
[null,"Otoño","Julia","Zucchini",502]
[null,"Otoño","Jorge","Manzanas",120]
[null,"Otoño","Sergio","Naranjas",50]

{"sheet":"20","index":20,"n_rows":17,"n_cols":11,"rows_kept":17}
["1. El área de tabla dinámica para este ejemplo está en las celdas B12 a C17. Ve a cualquiera de esas celdas. \n\n"]
["2. Presiona ALT+JZ, L para abrir la lista de campos de tabla dinámica. El valor predeterminado será el cuadro de texto de búsqueda: \"Escribe las palabras que deseas buscar\". No escribas nada. En su lugar, presiona la tecla TAB una vez. NOTA: Si no se inicia la lista de campos, presiona ALT+JZ, L de nuevo."]
["3. Presiona las teclas de dirección para desplazarte hasta el campo Representante de ventas. Presiona la barra espaciadora para agregar el campo Representante de ventas al área de Filas. Si deseas mostrar los detalles del Representante de ventas en el área de Columnas, usa las teclas Tab para ir al campo Representante de ventas de la sección Fila, a continuación, presiona la barra espaciadora y selecciona \"Mover a etiquetas de columna\". Presiona la tecla ESC para salir del panel de Campos de tabla dinámica. "]
["4. Determina quién vendió más artículos en otoño, luego haz una selección en la celda K8. "]
["Para continuar con este tutorial, presiona CTRL + AV PÁG. Para ir a la hoja anterior, presiona CTRL + RE PÁG."]
[]
[{"$nulls":10},"Selecciona una opción:"]
[]
[{"$nulls":10},{"$f":"IF($K$8=\"Jorge\",\"¡Tienes razón!\",IF($K$8=\"Sergio\",\"Vuelve a intentarlo...\",IF($K$8=\"Julia\",\"No exactamente.\",IF($K$8=\" \",\" \",\" \"))))","v":" "}]
[]
[]
[null,"Etiquetas de fila","Suma de Unidades vendidas"]
[null,"Invierno",{"v":4100,"d":"4,100"}]
[null,"Primavera",{"v":4760,"d":"4,760"}]
[null,"Verano",{"v":3473,"d":"3,473"}]
[null,"Otoño",{"v":5425,"d":"5,425"}]
[null,"Total general",{"v":17758,"d":"17,758"}]

{"sheet":"21","index":21,"n_rows":14,"n_cols":10,"rows_kept":14}
["1. Haz clic en la celda B13 para activar la tabla dinámica denominada \"Suma de Unidades vendidas\".\n\n"]
["2. Presiona ALT+JZ, L para abrir la lista de campos de tabla dinámica. El valor predeterminado será el cuadro de texto de búsqueda: \"Escribe las palabras que deseas buscar\". No escribas nada. En su lugar, presiona la tecla TAB una vez. NOTA: Si no se inicia la lista de campos, presiona ALT+JZ, L de nuevo."]
["3. Usa la flecha y teclas de la barra espaciadora para expandir el ejemplo en una tabla dinámica vertical que tiene temporadas a la izquierda y representantes de ventas con sangría debajo de las temporadas. Presiona la tecla ESC para salir del panel Campos de tabla dinámica. "]
["Para continuar con este tutorial, presiona CTRL + AV PÁG. Para ir a la hoja anterior, presiona CTRL + RE PÁG.",{"$nulls":8},{"$f":"IF(AND($B$14=\"Comprador\",$I$18=1175),\"Buen trabajo. Colocaste un\",\" \")","v":" "}]
[{"$nulls":9},{"$f":"IF(AND(B$14=\"Invierno\",$C$17=1650),\"Buen trabajo. Colocaste un campo \",\" \")","v":" "}]
[{"$nulls":9},{"$f":"IF(AND(B$14=\"Invierno\",$C$17=1650),\"de fila secundario. Ahora, desplázate \",\" \")","v":" "}]
[{"$nulls":9},{"$f":"IF(AND(B$14=\"Invierno\",$C$17=1650),\"hacia abajo y haz clic en Siguiente.\",\" \")","v":" "}]
[]
[]
[]
[]
[]
[null,"Suma de Unidades vendidas"]
[null,{"v":17758,"d":"17,758"}]

{"sheet":"22","index":22,"n_rows":14,"n_cols":10,"rows_kept":14}
["1. Haz clic en la celda B13 para activar la tabla dinámica denominada \"Suma de Unidades vendidas\"."]
["2. Presiona ALT+JZ, L para abrir la lista de campos de tabla dinámica. El valor predeterminado será el cuadro de texto de búsqueda: \"Escribe las palabras que deseas buscar\". No escribas nada. En su lugar, presiona la tecla TAB una vez. NOTA: Si no se inicia la lista de campos, presiona ALT+JZ, L de nuevo."]
["3. Usa las teclas de flecha y barra espaciadora para modificar el ejemplo para que se muestra cada producto en su propia fila y cada temporada en su propia columna."]
["Para continuar con este tutorial, presiona CTRL + AV PÁG. Para ir a la hoja anterior, presiona CTRL + RE PÁG.",{"$nulls":8},{"$f":"IF(AND($B$15=\"Arándanos\",$G$28=1505),\"Buen trabajo. Colocaste un campo \",\" \")","v":" "}]
[{"$nulls":9},{"$f":"IF(AND($B$15=\"Arándanos\",$G$28=1505),\"de fila en la parte izquierda y un \",\" \")","v":" "}]
[{"$nulls":9},{"$f":"IF(AND($B$15=\"Arándanos\",$G$28=1505),\"campo de columna con cuatro nuevas \",\" \")","v":" "}]
[{"$nulls":9},{"$f":"IF(AND($B$15=\"Arándanos\",$G$28=1505),\"columnas. Desplázate hacia abajo y \",\" \")","v":" "}]
[{"$nulls":9},{"$f":"IF(AND($B$15=\"Arándanos\",$G$28=1505),\"haz clic en Siguiente...\",\" \")","v":" "}]
[]
[]
[]
[]
[null,"Suma de Unidades vendidas"]
[null,{"v":17758,"d":"17,758"}]

{"sheet":"23","index":23,"n_rows":16,"n_cols":18,"rows_kept":16}
["1. Haz clic en la celda B13 para activar la tabla dinámica denominada \"Suma de unidades vendidas\".\n\n"]
["2. Presiona ALT+JZ, L para abrir la lista de campos de tabla dinámica. El valor predeterminado será el cuadro de texto de búsqueda: \"Escribe las palabras que deseas buscar\". No escribas nada. En su lugar, presiona la tecla TAB una vez. NOTA: Si no se inicia la lista de campos, presiona ALT+JZ, L de nuevo."]
["3. Usa las teclas Tab, flecha y la barra espaciadora para modificar el ejemplo a fin de que muestre a los Representantes de ventas a la izquierda con las Temporadas con sangría debajo."]
["Para continuar con este tutorial, presiona CTRL + AV PÁG. Para ir a la hoja anterior, presiona CTRL + RE PÁG."]
[{"$nulls":9},{"$f":"IF(AND($B$14=\"Sergio\",$C$14=5036),\"Buen trabajo. Ahora se pueden leer \",\" \")","v":" "}]
[{"$nulls":9},{"$f":"IF(AND($B$14=\"Sergio\",$C$14=5036),\"los datos más fácilmente. Desplázate \",\" \")","v":" "}]
[{"$nulls":9},{"$f":"IF(AND($B$14=\"Sergio\",$C$14=5036),\"hacia abajo y haz clic en Siguiente...\",\" \")","v":" "}]
[]
[]
[]
[]
[]
[null,null,"Etiquetas de columna"]
[null,null,"Sergio",{"$nulls":3},"Total Sergio","Jorge",{"$nulls":3},"Total Jorge","Julia",{"$nulls":3},"Total Julia","Total general"]
[null,null,"Otoño","Primavera","Verano","Invierno",null,"Otoño","Primavera","Verano","Invierno",null,"Otoño","Primavera","Verano","Invierno"]
[null,"Suma de Unidades vendidas",933,{"v":1320,"d":"1,320"},{"v":1133,"d":"1,133"},{"v":1650,"d":"1,650"},{"v":5036,"d":"5,036"},{"v":3220,"d":"3,220"},{"v":2400,"d":"2,400"},{"v":1260,"d":"1,260"},{"v":1420,"d":"1,420"},{"v":8300,"d":"8,300"},{"v":1272,"d":"1,272"},{"v":1040,"d":"1,040"},{"v":1080,"d":"1,080"},{"v":1030,"d":"1,030"},{"v":4422,"d":"4,422"},{"v":17758,"d":"17,758"}]

{"sheet":"24","index":24,"n_rows":14,"n_cols":9,"rows_kept":14}
["1. Haz clic en la celda B13 para activar la tabla dinámica denominada \"Suma de Unidades vendidas\"."]
["2. Presiona ALT+JZ, L para abrir la lista de campos de tabla dinámica. El valor predeterminado será el cuadro de texto de búsqueda: \"Escribe las palabras que deseas buscar\". No escribas nada. En su lugar, presiona la tecla TAB una vez. NOTA: Si no se inicia la lista de campos, presiona ALT+JZ, L de nuevo."]
["3. Usa las teclas Tab, flecha y la barra espaciadora para modificar el ejemplo a fin de que cada Representante de ventas tenga su propio campo de columna con la Temporadas a la izquierda y los Productos con sangría debajo."]
["4. Selecciona la celda I9 y selecciona cuántos pomelos Sergio vendió en invierno."]
["Para continuar con este tutorial, presiona CTRL + AV PÁG. Para ir a la hoja anterior, presiona CTRL + RE PÁG."]
[]
[]
[{"$nulls":8},"Selecciona una opción:"]
[]
[{"$nulls":8},{"$f":"IF($I$9=400,\"¡Tienes razón!\",IF($I$9=530,\"Vuelve a intentarlo...\",IF($I$9=123,\"No exactamente.\",\" \")))","v":" "}]
[]
[]
[null,"Suma de Unidades vendidas"]
[null,{"v":17758,"d":"17,758"}]

{"sheet":"Más información","index":25,"n_rows":12,"n_cols":1,"rows_kept":12}
["Buen trabajo. ¿No son excelentes las tablas dinámicas?"]
["Pero te recomendamos que sigas trabajando. Todavía hay cosas que descubrir..."]
["Más información de las tablas dinámicas\nLee este artículo útil sobre las tablas dinámicas para que descubras qué más puedes hacer."]
["Acerca de la actualización\nLee este artículo importante acerca de cómo actualizar las tablas dinámicas. "]
["Comunidad\nConéctate con otros fans de Excel. Pueden ayudarte y tú puedes ayudarlos."]
[]
[" "]
["Más información"]
["Más información"]
["Más información"]
["Más información"]
["Comunidad"]